[Event "Live Chess"]
[Site "Chess.com"]
[Date "2024.06.01"]
[Round "-"]
[White "Keithdfg"]
[Black "viktorskliarov"]
[Result "1/2-1/2"]
[WhiteElo "1747"]
[BlackElo "2638"]
[TimeControl "300"]
[EndTime "9:17:02 PDT"]
[Termination "Game drawn by repetition"]

1. Nf3 {[%clk 0:04:57.4]} 1... g6 {[%clk 0:04:58.6]} 2. g3 {[%clk 0:04:54.3]}
2... Bg7 {[%clk 0:04:58]} 3. Bg2 {[%clk 0:04:53.9]} 3... Nf6 {[%clk 0:04:57.6]}
4. O-O {[%clk 0:04:53.5]} 4... O-O {[%clk 0:04:57.3]} 5. d3 {[%clk 0:04:53]}
5... c5 {[%clk 0:04:56.6]} 6. c4 {[%clk 0:04:52.5]} 6... d5 {[%clk 0:04:55.6]}
7. cxd5 {[%clk 0:04:50.4]} 7... Nxd5 {[%clk 0:04:54.5]} 8. Nc3 {[%clk
0:04:49.1]} 8... Nxc3 {[%clk 0:04:51.6]} 9. bxc3 {[%clk 0:04:48.3]} 9... Bxc3
{[%clk 0:04:51.2]} 10. Bh6 {[%clk 0:04:47.3]} 10... Bg7 {[%clk 0:04:48.7]} 11.
Bxg7 {[%clk 0:04:45.3]} 11... Kxg7 {[%clk 0:04:48.6]} 12. Qc2 {[%clk 0:04:44.2]}
12... Nd7 {[%clk 0:04:38.3]} 13. Rfc1 {[%clk 0:04:40.8]} 13... Rb8 {[%clk
0:04:35.1]} 14. Qc3+ {[%clk 0:04:31.1]} 14... Kg8 {[%clk 0:04:29.2]} 15. Ne5
{[%clk 0:04:30.1]} 15... Nxe5 {[%clk 0:03:56.1]} 16. Qxe5 {[%clk 0:04:27.9]}
16... Bg4 {[%clk 0:03:55.7]} 17. Rxc5 {[%clk 0:04:24]} 17... b6 {[%clk
0:03:39.3]} 18. Rc7 {[%clk 0:04:21.8]} 18... Bxe2 {[%clk 0:03:34]} 19. Rxe7
{[%clk 0:04:17.4]} 19... Re8 {[%clk 0:03:04.3]} 20. Rxe8+ {[%clk 0:04:14.6]}
20... Qxe8 {[%clk 0:03:03]} 21. Qxe8+ {[%clk 0:04:11.5]} 21... Rxe8 {[%clk
0:03:01.3]} 22. Re1 {[%clk 0:04:09.5]} 22... Kf8 {[%clk 0:02:55]} 23. d4 {[%clk
0:04:04.6]} 23... Bc4 {[%clk 0:02:44.3]} 24. Rxe8+ {[%clk 0:04:01.4]} 24... Kxe8
{[%clk 0:02:43.4]} 25. a3 {[%clk 0:04:01.1]} 25... b5 {[%clk 0:02:17.6]} 26. f4
{[%clk 0:03:55.2]} 26... a5 {[%clk 0:02:15.4]} 27. Kf2 {[%clk 0:03:50.7]} 27...
Kd7 {[%clk 0:02:13.4]} 28. Ke3 {[%clk 0:03:49.7]} 28... Kd6 {[%clk 0:01:57.1]}
29. Kd2 {[%clk 0:03:48.5]} 29... b4 {[%clk 0:01:42]} 30. axb4 {[%clk 0:03:46.9]}
30... axb4 {[%clk 0:01:41.9]} 31. Bf3 {[%clk 0:03:43.2]} 31... Bd5 {[%clk
0:01:36.9]} 32. Bd1 {[%clk 0:03:40.9]} 32... Kc6 {[%clk 0:01:33.6]} 33. Ba4+
{[%clk 0:03:34.1]} 33... Kb6 {[%clk 0:01:32]} 34. Kc2 {[%clk 0:03:30]} 34... Ka5
{[%clk 0:01:28.6]} 35. Be8 {[%clk 0:03:27]} 35... f6 {[%clk 0:01:27.1]} 36. Bd7
{[%clk 0:03:24.8]} 36... h6 {[%clk 0:01:23]} 37. Be8 {[%clk 0:03:21.9]} 37... g5
{[%clk 0:01:22.2]} 38. h4 {[%clk 0:03:16.6]} 38... gxh4 {[%clk 0:01:19.3]} 39.
gxh4 {[%clk 0:03:15.4]} 39... Kb6 {[%clk 0:01:18.7]} 40. Kd3 {[%clk 0:03:07.8]}
40... Kc7 {[%clk 0:01:17.1]} 41. Bh5 {[%clk 0:03:05.4]} 41... Kd6 {[%clk
0:01:16]} 42. Bg4 {[%clk 0:03:03.4]} 42... Kc6 {[%clk 0:01:11.7]} 43. Bc8 {[%clk
0:02:59.9]} 43... Kb5 {[%clk 0:01:07.9]} 44. Bd7+ {[%clk 0:02:57.9]} 44... Kb6
{[%clk 0:01:07.4]} 45. Be8 {[%clk 0:02:54.4]} 45... Ka5 {[%clk 0:01:06.4]} 46.
Bd7 {[%clk 0:02:52]} 46... Kb6 {[%clk 0:00:51.9]} 47. Be8 {[%clk 0:02:49.2]}
1/2-1/2

[Event "Live Chess"]
[Site "Chess.com"]
[Date "2024.06.01"]
[Round "-"]
[White "MiflockHydra"]
[Black "elephantgerrald"]
[Result "0-1"]
[WhiteElo "566"]
[BlackElo "716"]
[TimeControl "300"]
[EndTime "9:17:06 PDT"]
[Termination "elephantgerrald won on time"]

1. d4 {[%clk 0:04:52.7]} 1... d5 {[%clk 0:04:58.2]} 2. Bf4 {[%clk 0:04:50.8]}
2... Nc6 {[%clk 0:04:57.6]} 3. e3 {[%clk 0:04:48.9]} 3... Nf6 {[%clk 0:04:56.8]}
4. Bb5 {[%clk 0:04:46.5]} 4... Bf5 {[%clk 0:04:56.2]} 5. Bxc6+ {[%clk
0:04:43.3]} 5... bxc6 {[%clk 0:04:55.4]} 6. Qf3 {[%clk 0:04:39.7]} 6... e6
{[%clk 0:04:48.3]} 7. c3 {[%clk 0:04:29.3]} 7... Qb8 {[%clk 0:04:46.4]} 8. Nd2
{[%clk 0:04:25.6]} 8... Qxb2 {[%clk 0:04:44.8]} 9. Rb1 {[%clk 0:04:24]} 9...
Bxb1 {[%clk 0:04:37.6]} 10. Bxc7 {[%clk 0:04:16.1]} 10... Qc1+ {[%clk
0:04:18.2]} 11. Ke2 {[%clk 0:04:13.7]} 11... Qc2 {[%clk 0:04:11.8]} 12. Qh3
{[%clk 0:04:02.6]} 12... Qd3+ {[%clk 0:04:08.5]} 13. Ke1 {[%clk 0:03:57.6]}
13... Be7 {[%clk 0:04:02.9]} 14. Ngf3 {[%clk 0:03:45.9]} 14... O-O {[%clk
0:03:50.8]} 15. Ne5 {[%clk 0:03:40.3]} 15... Rac8 {[%clk 0:03:42.4]} 16. Nxd3
{[%clk 0:03:33.7]} 16... Bxd3 {[%clk 0:03:40.5]} 17. Bf4 {[%clk 0:03:29.6]}
17... h6 {[%clk 0:03:38.1]} 18. Qg3 {[%clk 0:03:26.7]} 18... Nh5 {[%clk
0:03:34.2]} 19. Qg4 {[%clk 0:03:20.2]} 19... Nf6 {[%clk 0:03:31.3]} 20. Qg3
{[%clk 0:03:13.4]} 20... Nh5 {[%clk 0:03:29]} 21. Qh3 {[%clk 0:03:12.4]} 21...
Nf6 {[%clk 0:03:24.1]} 22. g4 {[%clk 0:02:57.8]} 22... g5 {[%clk 0:03:17.2]} 23.
Be5 {[%clk 0:02:54.5]} 23... Kg7 {[%clk 0:03:14.3]} 24. Bxf6+ {[%clk 0:02:51.4]}
24... Bxf6 {[%clk 0:03:12.9]} 25. Qg3 {[%clk 0:02:49.7]} 25... Rb8 {[%clk
0:03:11.7]} 26. h4 {[%clk 0:02:47.9]} 26... gxh4 {[%clk 0:03:08.3]} 27. Qf4
{[%clk 0:02:39.8]} 27... Bg5 {[%clk 0:03:05.3]} 28. Qe5+ {[%clk 0:02:35.4]}
28... Bf6 {[%clk 0:03:03.9]} 29. Qh5 {[%clk 0:02:33.7]} 29... Bg6 {[%clk
0:03:01.1]} 30. g5 {[%clk 0:02:23.9]} 30... Bxh5 {[%clk 0:02:58.5]} 31. gxf6+
{[%clk 0:02:23]} 31... Kxf6 {[%clk 0:02:57.2]} 32. Rxh4 {[%clk 0:02:21.4]} 32...
Kg5 {[%clk 0:02:55.7]} 33. Rh2 {[%clk 0:02:11.6]} 33... f5 {[%clk 0:02:43]} 34.
Rg2+ {[%clk 0:02:05.3]} 34... Bg4 {[%clk 0:02:40.5]} 35. Nf3+ {[%clk 0:02:01.1]}
35... Kh5 {[%clk 0:02:35.6]} 36. Rh2+ {[%clk 0:01:53.9]} 36... Kg6 {[%clk
0:02:32.8]} 37. Ne5+ {[%clk 0:01:50.3]} 37... Kf6 {[%clk 0:02:30.1]} 38. Rxh6+
{[%clk 0:01:46.6]} 38... Kg7 {[%clk 0:02:23.5]} 39. Rg6+ {[%clk 0:01:43.9]}
39... Kh7 {[%clk 0:02:20.5]} 40. Rxe6 {[%clk 0:01:27.7]} 40... Rb1+ {[%clk
0:02:18.7]} 41. Kd2 {[%clk 0:01:20.6]} 41... Rd1+ {[%clk 0:02:17.1]} 42. Kc2
{[%clk 0:01:14.8]} 42... Rb8 {[%clk 0:02:11.8]} 43. Re7+ {[%clk 0:01:06.9]}
43... Kg8 {[%clk 0:02:09]} 44. Nxc6 {[%clk 0:00:48.6]} 44... Rbb1 {[%clk
0:02:04.8]} 45. Nxa7 {[%clk 0:00:31.5]} 45... Rbc1+ {[%clk 0:02:02.9]} 46. Kb3
{[%clk 0:00:26.6]} 46... Rb1+ {[%clk 0:01:56.9]} 47. Ka3 {[%clk 0:00:25]} 47...
Rd3 {[%clk 0:01:50]} 48. Re8+ {[%clk 0:00:24]} 48... Kf7 {[%clk 0:01:48.1]} 49.
Rd8 {[%clk 0:00:22.7]} 49... Rxc3+ {[%clk 0:01:46]} 50. Ka4 {[%clk 0:00:20.5]}
50... Rc4+ {[%clk 0:01:42.6]} 51. Ka5 {[%clk 0:00:19.3]} 51... Bd1 {[%clk
0:01:37.5]} 52. Ka6 {[%clk 0:00:18.5]} 52... Rc3 {[%clk 0:01:35]} 53. Rxd5
{[%clk 0:00:16.5]} 53... Ra3+ {[%clk 0:01:33.4]} 54. Ra5 {[%clk 0:00:12.6]}
54... Rc3 {[%clk 0:01:17.4]} 55. Rxf5+ {[%clk 0:00:10.6]} 55... Ke6 {[%clk
0:01:15.4]} 56. Re5+ {[%clk 0:00:08.6]} 56... Kf6 {[%clk 0:01:13.8]} 57. Rd5
{[%clk 0:00:06.8]} 57... Bf3 {[%clk 0:01:08.2]} 58. Rd6+ {[%clk 0:00:04.9]}
58... Ke7 {[%clk 0:01:04.9]} 59. Rb6 {[%clk 0:00:03.5]} 59... Be2+ {[%clk
0:01:00.3]} 0-1

[Event "Live Chess"]
[Site "Chess.com"]
[Date "2024.06.01"]
[Round "-"]
[White "NottheBishopSacrifice"]
[Black "Harry_Li"]
[Result "0-1"]
[WhiteElo "2109"]
[BlackElo "2140"]
[TimeControl "300"]
[EndTime "9:17:07 PDT"]
[Termination "Harry_Li won by checkmate"]

1. d4 {[%clk 0:04:57.7]} 1... d5 {[%clk 0:04:59]} 2. Nf3 {[%clk 0:04:56.5]} 2...
Nf6 {[%clk 0:04:56.6]} 3. Bf4 {[%clk 0:04:56]} 3... c5 {[%clk 0:04:55.1]} 4. e3
{[%clk 0:04:54.9]} 4... Nc6 {[%clk 0:04:54.1]} 5. c3 {[%clk 0:04:54.2]} 5... Qb6
{[%clk 0:04:53.5]} 6. Qc2 {[%clk 0:04:53.8]} 6... Nh5 {[%clk 0:04:45]} 7. Be5
{[%clk 0:04:51.8]} 7... f6 {[%clk 0:04:40.4]} 8. dxc5 {[%clk 0:04:50.7]} 8...
Qxc5 {[%clk 0:04:38]} 9. Bd4 {[%clk 0:04:50.3]} 9... Nxd4 {[%clk 0:04:36.9]} 10.
exd4 {[%clk 0:04:46]} 10... Qc7 {[%clk 0:04:22.7]} 11. Bb5+ {[%clk 0:04:43.8]}
11... Bd7 {[%clk 0:04:19]} 12. Bxd7+ {[%clk 0:04:42.8]} 12... Qxd7 {[%clk
0:04:18.9]} 13. O-O {[%clk 0:04:39.5]} 13... e6 {[%clk 0:04:12.1]} 14. Nbd2
{[%clk 0:04:32.3]} 14... Bd6 {[%clk 0:04:10.3]} 15. g3 {[%clk 0:04:29.3]} 15...
O-O {[%clk 0:04:05.3]} 16. Rfe1 {[%clk 0:04:28.2]} 16... Rae8 {[%clk 0:03:45.6]}
17. c4 {[%clk 0:04:16.8]} 17... g6 {[%clk 0:03:23.9]} 18. Rac1 {[%clk 0:04:00]}
18... dxc4 {[%clk 0:03:22.9]} 19. Nxc4 {[%clk 0:03:55]} 19... Bb8 {[%clk
0:03:20.7]} 20. Qe4 {[%clk 0:03:50.1]} 20... Ng7 {[%clk 0:03:17]} 21. Na5 {[%clk
0:03:42.7]} 21... b6 {[%clk 0:03:01.9]} 22. Nc6 {[%clk 0:03:33.2]} 22... Bd6
{[%clk 0:03:00.1]} 23. b4 {[%clk 0:03:31.7]} 23... b5 {[%clk 0:02:28.4]} 24. a4
{[%clk 0:03:25.7]} 24... a6 {[%clk 0:02:21.6]} 25. axb5 {[%clk 0:03:23.9]} 25...
axb5 {[%clk 0:02:21.5]} 26. d5 {[%clk 0:03:12.7]} 26... e5 {[%clk 0:01:23.5]}
27. Qd3 {[%clk 0:03:06.1]} 27... Qb7 {[%clk 0:01:13.7]} 28. Na5 {[%clk
0:03:02.2]} 28... Qf7 {[%clk 0:00:49.9]} 29. Qxb5 {[%clk 0:02:53.5]} 29... Rb8
{[%clk 0:00:48.7]} 30. Qe2 {[%clk 0:02:22.5]} 30... Bxb4 {[%clk 0:00:47]} 31.
Nc6 {[%clk 0:02:20.9]} 31... Bxe1 {[%clk 0:00:43.1]} 32. Nxb8 {[%clk 0:02:18.4]}
32... Rxb8 {[%clk 0:00:40.9]} 33. Qxe1 {[%clk 0:02:14.4]} 33... Qxd5 {[%clk
0:00:40.1]} 34. Qc3 {[%clk 0:02:12.4]} 34... Ne6 {[%clk 0:00:35.8]} 35. Qe3
{[%clk 0:01:56.5]} 35... Rb3 {[%clk 0:00:21.6]} 36. Rc8+ {[%clk 0:01:54.9]}
36... Kg7 {[%clk 0:00:17.9]} 37. Qa7+ {[%clk 0:01:51]} 37... Kh6 {[%clk
0:00:11.5]} 38. Ne1 {[%clk 0:01:34.8]} 38... Rb1 {[%clk 0:00:09.7]} 39. Qe3+
{[%clk 0:01:32.2]} 39... g5 {[%clk 0:00:08.2]} 40. h4 {[%clk 0:01:25.1]} 40...
Nd4 {[%clk 0:00:07.1]} 41. hxg5+ {[%clk 0:01:23.8]} 41... fxg5 {[%clk
0:00:06.5]} 42. Rd8 {[%clk 0:00:54.3]} 42... Qxd8 {[%clk 0:00:04.9]} 43. Qe4
{[%clk 0:00:50.8]} 43... Rxe1+ {[%clk 0:00:04.3]} 44. Qxe1 {[%clk 0:00:47.2]}
44... Nf3+ {[%clk 0:00:04]} 45. Kf1 {[%clk 0:00:46.4]} 45... Nxe1 {[%clk
0:00:03.9]} 46. Kxe1 {[%clk 0:00:45.6]} 46... Qd3 {[%clk 0:00:03.8]} 47. g4
{[%clk 0:00:43.7]} 47... e4 {[%clk 0:00:03.7]} 48. f3 {[%clk 0:00:42.1]} 48...
Kg6 {[%clk 0:00:03.6]} 49. fxe4 {[%clk 0:00:40.7]} 49... Qxe4+ {[%clk
0:00:03.5]} 50. Kf2 {[%clk 0:00:39.9]} 50... Qxg4 {[%clk 0:00:03.4]} 51. Kf1
{[%clk 0:00:39.2]} 51... h5 {[%clk 0:00:03.3]} 52. Kf2 {[%clk 0:00:38.6]} 52...
h4 {[%clk 0:00:03.2]} 53. Kf1 {[%clk 0:00:38.1]} 53... h3 {[%clk 0:00:02.6]} 54.
Kf2 {[%clk 0:00:38]} 54... Qg2+ {[%clk 0:00:02.2]} 55. Ke3 {[%clk 0:00:37.9]}
55... h2 {[%clk 0:00:02.1]} 56. Kd4 {[%clk 0:00:37.5]} 56... h1=Q {[%clk
0:00:02]} 57. Kc5 {[%clk 0:00:37.2]} 57... Qh4 {[%clk 0:00:01.9]} 58. Kd6 {[%clk
0:00:36.6]} 58... Qf3 {[%clk 0:00:01.8]} 59. Kc5 {[%clk 0:00:36.2]} 59... Qhe4
{[%clk 0:00:01.7]} 60. Kd6 {[%clk 0:00:35.9]} 60... Qfd3+ {[%clk 0:00:01.6]} 61.
Kc7 {[%clk 0:00:35]} 61... Qec4+ {[%clk 0:00:01.5]} 62. Kb7 {[%clk 0:00:34.3]}
62... Qdb3+ {[%clk 0:00:01.4]} 63. Ka7 {[%clk 0:00:33.9]} 63... Qca4# {[%clk
0:00:01.3]} 0-1

[Event "Live Chess"]
[Site "Chess.com"]
[Date "2024.06.01"]
[Round "-"]
[White "OliWally08"]
[Black "Isambard_Thomas"]
[Result "0-1"]
[WhiteElo "1250"]
[BlackElo "2093"]
[TimeControl "300"]
[EndTime "9:17:12 PDT"]
[Termination "Isambard_Thomas won by resignation"]

1. e4 {[%clk 0:04:59.5]} 1... Nc6 {[%clk 0:04:58.5]} 2. Bc4 {[%clk 0:04:59]}
2... e5 {[%clk 0:04:57.4]} 3. c3 {[%clk 0:04:57.3]} 3... Nf6 {[%clk 0:04:56.8]}
4. d3 {[%clk 0:04:54.9]} 4... Bc5 {[%clk 0:04:55.3]} 5. Be3 {[%clk 0:04:53.3]}
5... d6 {[%clk 0:04:41.8]} 6. Bxc5 {[%clk 0:04:43.2]} 6... dxc5 {[%clk
0:04:40.5]} 7. Nf3 {[%clk 0:04:42.9]} 7... Bg4 {[%clk 0:04:39]} 8. h3 {[%clk
0:04:39.7]} 8... Bxf3 {[%clk 0:04:38]} 9. Qxf3 {[%clk 0:04:34.6]} 9... Qe7
{[%clk 0:04:36.9]} 10. Nd2 {[%clk 0:04:30.7]} 10... O-O-O {[%clk 0:04:35.4]} 11.
O-O {[%clk 0:04:13.9]} 11... Na5 {[%clk 0:04:30.1]} 12. Bb3 {[%clk 0:04:00.1]}
12... Kb8 {[%clk 0:04:00.4]} 13. Nc4 {[%clk 0:03:57.7]} 13... Nxc4 {[%clk
0:03:55.4]} 14. Bxc4 {[%clk 0:03:55.8]} 14... c6 {[%clk 0:03:52.9]} 15. a4
{[%clk 0:03:50.3]} 15... h5 {[%clk 0:03:47.2]} 16. a5 {[%clk 0:03:47.3]} 16...
g5 {[%clk 0:03:41.5]} 17. b4 {[%clk 0:02:56.5]} 17... g4 {[%clk 0:03:36.3]} 18.
Qe3 {[%clk 0:02:32]} 18... cxb4 {[%clk 0:03:32.9]} 19. cxb4 {[%clk 0:02:27.7]}
19... gxh3 {[%clk 0:03:31.1]} 20. a6 {[%clk 0:02:18.3]} 20... hxg2 {[%clk
0:03:22.7]} 21. axb7 {[%clk 0:02:05.8]} 21... gxf1=Q+ {[%clk 0:03:21]} 22. Kxf1
{[%clk 0:02:04.7]} 22... Rd4 {[%clk 0:03:00.7]} 23. b5 {[%clk 0:01:41.4]} 23...
cxb5 {[%clk 0:02:55.7]} 24. Bxb5 {[%clk 0:01:38.4]} 24... Qxb7 {[%clk 0:02:53]}
25. Qc1 {[%clk 0:01:10.8]} 25... Qxb5 {[%clk 0:02:43.5]} 26. Qa3 {[%clk
0:00:50.5]} 26... Qxd3+ {[%clk 0:02:32.3]} 27. Qxd3 {[%clk 0:00:47.5]} 27...
Rxd3 {[%clk 0:02:32.2]} 28. Rb1+ {[%clk 0:00:47.1]} 28... Kc7 {[%clk 0:02:28.9]}
29. Ke2 {[%clk 0:00:46.3]} 29... Rhd8 {[%clk 0:02:25.5]} 30. Rc1+ {[%clk
0:00:44.9]} 30... Kb7 {[%clk 0:02:21.3]} 31. Rb1+ {[%clk 0:00:43.9]} 31... Ka8
{[%clk 0:02:19.9]} 32. Rb2 {[%clk 0:00:41.8]} 32... Nxe4 {[%clk 0:02:18.4]} 33.
f3 {[%clk 0:00:38.4]} 33... Ng3+ {[%clk 0:02:16.5]} 34. Kf2 {[%clk 0:00:32.5]}
34... h4 {[%clk 0:02:15.7]} 35. Ke1 {[%clk 0:00:28.7]} 35... Re3+ {[%clk
0:02:12]} 36. Kf2 {[%clk 0:00:24.3]} 0-1

[Event "Live Chess"]
[Site "Chess.com"]
[Date "2024.06.01"]
[Round "-"]
[White "CarmelJane"]
[Black "PedroCI"]
[Result "1-0"]
[WhiteElo "2116"]
[BlackElo "1252"]
[TimeControl "300"]
[EndTime "9:17:16 PDT"]
[Termination "CarmelJane won by checkmate"]

1. e4 {[%clk 0:04:57.5]} 1... e5 {[%clk 0:04:58]} 2. Nf3 {[%clk 0:04:56.2]} 2...
Nc6 {[%clk 0:04:55]} 3. Bc4 {[%clk 0:04:55.5]} 3... Bc5 {[%clk 0:04:52.8]} 4. c3
{[%clk 0:04:50.8]} 4... Nf6 {[%clk 0:04:50.5]} 5. d3 {[%clk 0:04:48.5]} 5... Na5
{[%clk 0:04:48.6]} 6. Nxe5 {[%clk 0:04:41.7]} 6... Nxc4 {[%clk 0:04:39.4]} 7.
Nxc4 {[%clk 0:04:41.6]} 7... b5 {[%clk 0:04:34]} 8. Ne3 {[%clk 0:04:36.4]} 8...
d6 {[%clk 0:04:27.1]} 9. O-O {[%clk 0:04:35]} 9... O-O {[%clk 0:04:23.5]} 10. h3
{[%clk 0:04:25.9]} 10... Nh5 {[%clk 0:04:20.4]} 11. Qxh5 {[%clk 0:04:23.1]}
11... g6 {[%clk 0:04:16.6]} 12. Qe2 {[%clk 0:04:19.9]} 12... c6 {[%clk
0:03:53.3]} 13. d4 {[%clk 0:04:17.8]} 13... Bb6 {[%clk 0:03:51.6]} 14. Ng4
{[%clk 0:04:17.4]} 14... Qe7 {[%clk 0:03:46.7]} 15. Qf3 {[%clk 0:04:11.5]} 15...
f5 {[%clk 0:03:36.1]} 16. exf5 {[%clk 0:04:04.2]} 16... Rxf5 {[%clk 0:03:34.2]}
17. Nh6+ {[%clk 0:04:03.1]} 17... Kg7 {[%clk 0:03:32.1]} 18. Nxf5+ {[%clk
0:04:02.6]} 18... Bxf5 {[%clk 0:03:30.5]} 19. Be3 {[%clk 0:03:56.4]} 19... d5
{[%clk 0:03:27.8]} 20. Nd2 {[%clk 0:03:54.4]} 20... Bc7 {[%clk 0:03:25.5]} 21.
Rae1 {[%clk 0:03:50.6]} 21... Qd6 {[%clk 0:03:23.2]} 22. g3 {[%clk 0:03:45]}
22... Qd7 {[%clk 0:03:16.6]} 23. Bg5 {[%clk 0:03:29.4]} 23... Bd6 {[%clk
0:03:06.2]} 24. g4 {[%clk 0:03:24.6]} 24... Be6 {[%clk 0:02:52.7]} 25. Qf6+
{[%clk 0:03:22]} 25... Kg8 {[%clk 0:02:50.5]} 26. Rxe6 {[%clk 0:03:15.2]} 26...
Qxe6 {[%clk 0:02:50.4]} 27. Qxe6+ {[%clk 0:03:14.3]} 27... Kh8 {[%clk 0:02:47]}
28. Bf6# {[%clk 0:03:13.2]} 1-0

[Event "Live Chess"]
[Site "Chess.com"]
[Date "2024.06.01"]
[Round "-"]
[White "Zhevzh1k7"]
[Black "edward33_24h"]
[Result "1-0"]
[WhiteElo "1082"]
[BlackElo "624"]
[TimeControl "300"]
[EndTime "9:17:23 PDT"]
[Termination "Zhevzh1k7 won by checkmate"]

1. e4 {[%clk 0:04:58.7]} 1... e5 {[%clk 0:04:56.3]} 2. Nf3 {[%clk 0:04:57.5]}
2... Nc6 {[%clk 0:04:51.8]} 3. Bc4 {[%clk 0:04:55.8]} 3... Bc5 {[%clk
0:04:46.6]} 4. O-O {[%clk 0:04:51.8]} 4... d6 {[%clk 0:04:42.8]} 5. c3 {[%clk
0:04:49.3]} 5... Bg4 {[%clk 0:04:39.2]} 6. d4 {[%clk 0:04:42.9]} 6... exd4
{[%clk 0:04:35.7]} 7. cxd4 {[%clk 0:04:40.1]} 7... Bb4 {[%clk 0:04:32.5]} 8. Nc3
{[%clk 0:04:34.9]} 8... Bxc3 {[%clk 0:04:26.1]} 9. bxc3 {[%clk 0:04:32.1]} 9...
d5 {[%clk 0:04:16.5]} 10. exd5 {[%clk 0:04:26.4]} 10... Nb8 {[%clk 0:04:07.8]}
11. Re1+ {[%clk 0:04:15.1]} 11... Ne7 {[%clk 0:04:01.6]} 12. h3 {[%clk
0:04:07.4]} 12... Bd7 {[%clk 0:03:53.7]} 13. Bg5 {[%clk 0:04:00.9]} 13... O-O
{[%clk 0:03:39.9]} 14. Bxe7 {[%clk 0:03:49.5]} 14... Qc8 {[%clk 0:03:34.4]} 15.
Bxf8 {[%clk 0:03:48.3]} 15... Qxf8 {[%clk 0:03:31.8]} 16. Ne5 {[%clk 0:03:43.4]}
16... Bf5 {[%clk 0:03:24.3]} 17. d6 {[%clk 0:03:40]} 17... Be6 {[%clk
0:03:18.2]} 18. dxc7 {[%clk 0:03:34.8]} 18... Nd7 {[%clk 0:03:13.8]} 19. Bxe6
{[%clk 0:03:28.1]} 19... fxe6 {[%clk 0:03:08.9]} 20. Nxd7 {[%clk 0:03:25.4]}
20... Qd8 {[%clk 0:03:03]} 21. Nc5 {[%clk 0:03:14.4]} 21... Qxc7 {[%clk
0:02:58.3]} 22. Rxe6 {[%clk 0:03:08]} 22... b6 {[%clk 0:02:50.3]} 23. Qf3 {[%clk
0:03:01]} 23... Rc8 {[%clk 0:02:44.1]} 24. Qd5 {[%clk 0:02:51.1]} 24... bxc5
{[%clk 0:02:38.7]} 25. Rc6+ {[%clk 0:02:49.2]} 25... Qf7 {[%clk 0:02:32.2]} 26.
Rxc8# {[%clk 0:02:46.6]} 1-0

[Event "Live Chess"]
[Site "Chess.com"]
[Date "2024.06.01"]
[Round "-"]
[White "NAZRIZ1977"]
[Black "FlyingChessKestrel13"]
[Result "0-1"]
[WhiteElo "2128"]
[BlackElo "2129"]
[TimeControl "300"]
[EndTime "9:17:32 PDT"]
[Termination "FlyingChessKestrel13 won by resignation"]

1. d4 {[%clk 0:04:56.7]} 1... d5 {[%clk 0:04:58.8]} 2. Nf3 {[%clk 0:04:55.8]}
2... Nf6 {[%clk 0:04:56.7]} 3. e3 {[%clk 0:04:55]} 3... e6 {[%clk 0:04:55.4]} 4.
Bd3 {[%clk 0:04:54]} 4... Be7 {[%clk 0:04:52.9]} 5. Nbd2 {[%clk 0:04:53.5]} 5...
O-O {[%clk 0:04:51.8]} 6. O-O {[%clk 0:04:52.7]} 6... Nbd7 {[%clk 0:04:51]} 7.
c3 {[%clk 0:04:51.8]} 7... b6 {[%clk 0:04:50.1]} 8. e4 {[%clk 0:04:45.7]} 8...
dxe4 {[%clk 0:04:47.7]} 9. Nxe4 {[%clk 0:04:44.9]} 9... Bb7 {[%clk 0:04:46.6]}
10. Qe2 {[%clk 0:04:42.6]} 10... Nxe4 {[%clk 0:04:43.9]} 11. Bxe4 {[%clk
0:04:41.8]} 11... Bxe4 {[%clk 0:04:43.4]} 12. Qxe4 {[%clk 0:04:41.1]} 12... Nf6
{[%clk 0:04:43.1]} 13. Qh4 {[%clk 0:04:38.9]} 13... c5 {[%clk 0:04:34.1]} 14.
dxc5 {[%clk 0:04:37.2]} 14... bxc5 {[%clk 0:04:33]} 15. Bg5 {[%clk 0:04:25.2]}
15... h6 {[%clk 0:04:31.4]} 16. Bxh6 {[%clk 0:04:22.9]} 16... gxh6 {[%clk
0:04:30]} 17. Qxh6 {[%clk 0:04:22.1]} 17... Qd5 {[%clk 0:04:27.1]} 18. Ng5
{[%clk 0:04:15.5]} 18... Qf5 {[%clk 0:04:22.2]} 0-1

[Event "Live Chess"]
[Site "Chess.com"]
[Date "2024.06.01"]
[Round "-"]
[White "Shorr-Kan"]
[Black "TedUdale"]
[Result "0-1"]
[WhiteElo "1046"]
[BlackElo "2171"]
[TimeControl "300"]
[EndTime "9:17:33 PDT"]
[Termination "TedUdale won by checkmate"]

1. e4 {[%clk 0:04:56.4]} 1... c5 {[%clk 0:04:57.3]} 2. d4 {[%clk 0:04:54.7]}
2... cxd4 {[%clk 0:04:56.6]} 3. c3 {[%clk 0:04:53.8]} 3... Nc6 {[%clk
0:04:55.2]} 4. cxd4 {[%clk 0:04:51.6]} 4... d5 {[%clk 0:04:54.4]} 5. e5 {[%clk
0:04:50.1]} 5... e6 {[%clk 0:04:53.6]} 6. Bd3 {[%clk 0:04:47.3]} 6... Nge7
{[%clk 0:04:52.7]} 7. Nf3 {[%clk 0:04:46]} 7... Nf5 {[%clk 0:04:51.3]} 8. O-O
{[%clk 0:04:41.8]} 8... Be7 {[%clk 0:04:50.1]} 9. Nc3 {[%clk 0:04:38]} 9... Bd7
{[%clk 0:04:48.9]} 10. a3 {[%clk 0:04:29.3]} 10... a6 {[%clk 0:04:44.3]} 11. b4
{[%clk 0:04:27.6]} 11... b5 {[%clk 0:04:43.5]} 12. h3 {[%clk 0:04:20.1]} 12...
Nfxd4 {[%clk 0:04:36]} 13. Nxd4 {[%clk 0:04:18.1]} 13... Nxd4 {[%clk 0:04:35.3]}
14. Be2 {[%clk 0:04:00.3]} 14... Nc6 {[%clk 0:04:32.3]} 15. f4 {[%clk 0:03:52]}
15... Rc8 {[%clk 0:04:28.5]} 16. Bg4 {[%clk 0:03:43.1]} 16... O-O {[%clk
0:04:23.7]} 17. f5 {[%clk 0:03:41.5]} 17... Nxe5 {[%clk 0:04:22.6]} 18. fxe6
{[%clk 0:03:38.7]} 18... Bxe6 {[%clk 0:04:20.4]} 19. Bxe6 {[%clk 0:03:37.2]}
19... fxe6 {[%clk 0:04:19.3]} 20. Rf2 {[%clk 0:03:16.9]} 20... Rxc3 {[%clk
0:04:06.7]} 21. Bb2 {[%clk 0:03:11.3]} 21... Re3 {[%clk 0:04:05.3]} 22. Re2
{[%clk 0:02:55.5]} 22... Nc4 {[%clk 0:03:55.9]} 23. Rxe3 {[%clk 0:02:43.8]}
23... Nxe3 {[%clk 0:03:54.4]} 24. Qd4 {[%clk 0:02:39.8]} 24... Bf6 {[%clk
0:03:53.6]} 25. Qxe3 {[%clk 0:02:30.6]} 25... Bxb2 {[%clk 0:03:52]} 26. Qxe6+
{[%clk 0:02:29.4]} 26... Kh8 {[%clk 0:03:51.6]} 27. Re1 {[%clk 0:02:24.3]} 27...
Qg5 {[%clk 0:03:44.8]} 28. Qe8 {[%clk 0:02:18.1]} 28... Bd4+ {[%clk 0:03:39.3]}
29. Kh1 {[%clk 0:02:09.3]} 29... Qf6 {[%clk 0:03:37.9]} 30. Re6 {[%clk
0:01:49.6]} 30... Qf1+ {[%clk 0:03:35]} 31. Kh2 {[%clk 0:01:48.4]} 31... Bg1+
{[%clk 0:03:25.1]} 32. Kg3 {[%clk 0:01:45.1]} 32... Qf4# {[%clk 0:03:22.9]} 0-1